Cogmind - Beta 13 @@@ ROGUE MODE // 2024.03.31 @ 04:19:48 Player: oberon720 Result: Destroyed by G-34 Mercenary with Small Laser Performance ------------- Evolutions (0) 0 Regions Visited (1) 200 Robots Destroyed (18) 90 Value Destroyed (474) 474 Prototype IDs (0) 0 Alien Tech Used (0) 0 Bonus (0) 0 TOTAL SCORE: 764 Bonus ------- None Cogmind --------- Core Integrity 0/250 Matter 300/300 Energy 250/250 System Corruption 1% Temperature Cool (96) Movement Rolling (135) Ox3 Location -10/Materials Parts ------- > --- POWER (1) -------- Ion Engine > --- PROPULSION (2) --- Armored Wheel Armored Wheel > --- UTILITY (2) ------ Huge Storage Unit Sensor Array > --- WEAPON (2) ------- Beam Cannon Assault Rifle > --- INVENTORY (25) --- Armored Wheel Armored Wheel Improved Heat Sink Cooling System Cooling System Cooling System Cooling System Signal Interpreter Peak State ------------ > --- POWER ------------ Light Nuclear Core > --- PROPULSION ------- Light Treads Light Treads > --- UTILITY ---------- Huge Storage Unit Shield Generator > --- WEAPON ----------- EM Pulse Gun EM Pulse Gun > --- INVENTORY -------- Improved Heat Sink Sensor Array Signal Interpreter Grenade Launcher [Rating: 10] Favorites ----------- Power Light Nuclear Core Engine Ion Engine Power Core Light Nuclear Core Propulsion Light Treads Treads Light Treads Wheel Armored Wheel Utility Huge Storage Unit Device Sensor Array Storage Huge Storage Unit Weapon Assault Rifle Energy Gun EM Pulse Gun Energy Cannon Beam Cannon Ballistic Gun Assault Rifle Launcher Grenade Launcher Build | -11 -10 ------- Run | Yrd Mat Slots Evolved . | . . Power . | . . Propulsion . | . . Utility . | . . Weapon . | . . Parts Attached 21 | 6 15 Power 3 | 1 2 Engine 2 | 1 1 Core 1 | . 1 Reactor . | . . Propulsion 6 | 2 4 Treads 2 | 2 . Leg . | . . Wheel 4 | . 4 Hover . | . . Flight . | . . Utility 7 | 1 6 Device 4 | . 4 Storage 3 | 1 2 Processor . | . . Hackware . | . . Protection . | . . Artifact . | . . Weapon 5 | 2 3 Energy Gun 2 | 2 . Energy Cannon 1 | . 1 Ballistic Gun 1 | . 1 Ballistic Cannon . | . . Launcher 1 | . 1 Special Weapon . | . . Impact Weapon . | . . Slashing Weapon . | . . Piercing Weapon . | . . Special Melee Weapon . | . . Unidentified Prototypes . | . . Parts Lost 6 | . 6 Power 1 | . 1 Propulsion 2 | . 2 Utility 1 | . 1 Weapon 2 | . 2 Highest Loss Streak 3 | . 3 To Critical Strikes . | . . Average Slot Usage (%) 60 | . 60 Engine 3 | . 3 Core 2 | . 2 Treads 7 | . 7 Wheel 1 | . 1 Device 11 | . 11 Storage 14 | . 14 Energy Gun 6 | . 6 Ballistic Gun 8 | . 8 Launcher 3 | . 3 Naked Turns . | . . Heaviest Build 91 | 12 91 Greatest Support 40 | 40 40 Greatest Overweight (x) 29 | . 29 Average Overweight (x) 7 | . 7 Largest Inventory Capacity 25 | 8 25 Average Capacity 22 | 6 23 Most Carried 9 | 4 9 Average Carried 2 | . 2 Final Capacity 25 | 8 25 Final Carried 8 | . 8 Class Distribution -------------------- 96% | Mutant 3% | Scavenger-Mutant Dominant Class ---------------- Mutant | -10/Materials Resources | -11 -10 ----------- Run | Yrd Mat Matter Collected 501 | 210 291 Remotely . | . . Salvage Created 509 | . 509 Parts 42 | . 42 Haulers Intercepted . | . . Recyclers Shooed . | . . Parts Field Recycled . | . . Retrieved Matter . | . . Parts Self-Destructed . | . . Prevented . | . . Kills | -11 -10 ------- Run | Yrd Mat Combat Hostiles Destroyed 12 | . 12 Guns 9 | . 9 AOE 3 | . 3 Classes Destroyed 7 | . 7 Worker 1 | . 1 Tunneler 1 | . 1 Recycler 1 | . 1 Operator 1 | . 1 Watcher 2 | . 2 Swarmer 3 | . 3 Grunt 9 | . 9 Best Kill Streak 5 | . 5 Combat Bots Only 4 | . 4 Max Kills in Single Turn 4 | . 4 Gunslinging 1 | . 1 Exploded 1 | . 1 Melee . | . . Uniques/NPCs Destroyed . | . . Combat | -11 -10 -------- Run | Yrd Mat Hostile Shots Fired 118 | . 118 Missed 33 | . 33 Damage Taken 1003 | . 1003 Core 259 | . 259 Absorbed by Shields 57 | . 57 Core Remaining (%) 100 | 100 . Volleys Fired 45 | . 45 Largest 2 | . 2 Hottest 80 | . 80 Shots Fired 63 | . 63 Gun 54 | . 54 Cannon 5 | . 5 Launcher 4 | . 4 Special . | . . Kinetic 22 | . 22 Thermal 5 | . 5 Explosive 4 | . 4 Electromagnetic 32 | . 32 Robot Hit Streak 8 | . 8 Robot Miss Streak 2 | . 2 Penetration Max . | . . Secondary Targets 2 | . 2 Max Gunslinging Chain 1 | . 1 Shots Hit Robots 43 | . 43 Core Hits 30 | . 30 Critical Kills . | . . Critical Parts Destroyed . | . . Critical Strikes . | . . Melee Attacks . | . . Impact . | . . Slashing . | . . Piercing . | . . Sneak Attacks . | . . Combat Hostiles . | . . Follow-up Attacks . | . . Damage Inflicted 1083 | . 1083 Guns 512 | . 512 Cannons 35 | . 35 Explosions 535 | . 535 Melee . | . . Ramming 1 | . 1 Kinetic 209 | . 209 Thermal 35 | . 35 Explosive 535 | . 535 Electromagnetic 303 | . 303 Impact . | . . Slashing . | . . Piercing . | . . Highest Corruption 1 | . 1 Average Corruption 1 | . 1 Corruption Purged . | . . Corruption Blocked . | . . Effects 3 | . 3 Data Loss (minor) 1 | . 1 Data Loss (major) 2 | . 2 Overload Shots . | . . Overflow Damage 15 | . 15 Projectiles 8 | . 8 Explosions 7 | . 7 Melee . | . . Knockbacks . | . . Impact . | . . Kinetic . | . . Secondary . | . . Self-Inflicted Damage 77 | . 77 Shots 3 | . 3 Rammed 1 | . 1 Targets Rammed 1 | . 1 Kicked . | . . Crushed . | . . Highest Temperature 132 | . 132 Average Temperature 42 | . 42 Received Heat Transfer 460 | . 460 Siege Activations . | . . Robots Corrupted . | . . Combat Hostiles . | . . Parts Fried 2 | . 2 Impact Corruptions . | . . Robots Melted . | . . Combat Hostiles . | . . Parts Melted . | . . Heat Transferred 74 | . 74 Parts Sabotaged . | . . Parts Stolen . | . . Parts Stripped . | . . Power Chain Reactions . | . . Alert | -11 -10 ------- Run | Yrd Mat Peak Influence 244 | . 244 Initial . | . . Average 36 | . 37 Maximum Alert Level 1 | . 1 Low Security (%) 97 | 100 97 Level 1 2 | . 2 Level 2 . | . . Level 3 . | . . Level 4 . | . . Level 5 . | . . High Security . | . . Max Security . | . . Squads Dispatched 4 | . 4 Investigation 1 | . 1 Extermination . | . . Reinforcement 3 | . 3 Assault . | . . Garrison . | . . Intercept . | . . Searches Triggered . | . . Construction Impeded . | . . Haulers Reinforced . | . . Active Scanning Responses . | . . Cargo Convoy Interrupts . | . . Stealth | -11 -10 --------- Run | Yrd Mat Distress Signals 1 | . 1 Communications Jammed . | . . Distress Signals . | . . Times Spotted 24 | . 24 Peak Tracking Total 4 | . 4 Tactical Retreats . | . . Traps | -11 -10 ------- Run | Yrd Mat Traps Triggered 1 | . 1 Indirectly . | . . Trap Hack Attempts . | . . Triggered . | . . Disarmed . | . . Reprogrammed . | . . Reused . | . . Traps Extracted . | . . Installed . | . . Triggered . | . . Machines | -11 -10 ---------- Run | Yrd Mat Machines Disabled 5 | . 5 Max in Single Turn 2 | . 2 Machines Repaired . | . . Machines Dismantled . | . . Machines Sabotaged . | . . Overloaded Fab Kills . | . . Hacking | -11 -10 --------- Run | Yrd Mat Machines Accessed 8 | . 8 Terminals 6 | . 6 Fabricators . | . . Repair Stations . | . . Recycling Units 2 | . 2 Scanalyzers . | . . Garrison Access . | . . Total Hacks 22 | . 22 Successful 13 | . 13 Failed 9 | . 9 Catastrophic 6 | . 6 Database Lockouts . | . . Manual . | . . Terminals 19 | . 19 Fabricators . | . . Repair Stations . | . . Recycling Units 3 | . 3 Scanalyzers . | . . Garrison Access . | . . Terminal Hacks 12 | . 12 Record 7 | . 7 Robot Analysis 1 | . 1 Emergency Access Points 1 | . 1 Alert Level 1 | . 1 Locate Traps 1 | . 1 Maintenance Status 1 | . 1 Fabricator Hacks . | . . Repair Station Hacks . | . . Recycling Unit Hacks 1 | . 1 Retrieve Components 1 | . 1 Scanalyzer . | . . Garrison Access Hacks . | . . Unauthorized Hacks . | . . Terminals . | . . Fabricators . | . . Repair Stations . | . . Recycling Units . | . . Scanalyzers . | . . Garrison Access . | . . Data Cores Recovered . | . . Used . | . . Hacking Detections 6 | . 6 Full Trace Events 3 | . 3 Feedback Events 1 | . 1 Corruption 1 | . 1 Feedback Blocked . | . . Robot Schematics Acquired . | . . Robots Built . | . . Authchips . | . . Time . | . . Total Robot Build Rating . | . . Part Schematics Acquired . | . . Parts Built . | . . Authchips . | . . Time . | . . Total Part Build Rating . | . . Parts Repaired . | . . Time . | . . Parts Recycled . | . . Recycled Matter . | . . Retrieved Matter . | . . Retrieved Components 10 | . 10 Parts Scanalyzed . | . . Part Schematics Acquired . | . . Parts Damaged . | . . Bothacking | -11 -10 ------------ Run | Yrd Mat Used RIF Installer . | . . Robots Hacked . | . . Non-combat . | . . Combat . | . . Robot Hacks Applied . | . . Relay Couplers Released . | . . Fabnet Peak Effective % . | . . Robots Rewired . | . . Allies Hacked . | . . Hacks Repelled . | . . Allies | -11 -10 -------- Run | Yrd Mat Total Allies . | . . Largest Group . | . . Highest-Rated Group . | . . Highest-Rated Ally . | . . Total Orders . | . . Ally Attacks . | . . Total Damage . | . . Kills . | . . Allies Corrupted . | . . Allies Melted . | . . Intel | -11 -10 ------- Run | Yrd Mat Robot Analysis Total 1 | . 1 Derelict Logs Recovered . | . . Drone Launches . | . . Drone Recoveries . | . . Exploration | -11 -10 ------------- Run | Yrd Mat Turns Passed 4155 | 61 4094 Spaces Moved 847 | 33 814 Core 189 | 2 187 Treads 476 | 31 445 Legs . | . . Wheels 182 | . 182 Hover . | . . Flight . | . . Fastest Speed 50 | 50 130 Average Speed 469 | 153 482 Slowest Speed 1500 | 160 1500 Overloaded Moves . | . . Propulsion Burnouts . | . . Robots Hopped . | . . Cave-ins Triggered . | . . Exploration Rate (%) 51 | 4 98 Regions Visited 1 Branch Regions . Pre-discovered Areas . | . . Known Exits Taken . | . . Unknown Exits Taken 1 | 1 . Scrap Searched . | . . Spaces Dug . | . . Terrain Destroyed 39 | . 39 Melee . | . . Projectile . | . . AOE 39 | . 39 Terrain Rammed . | . . Walls Destroyed . | . . Machines Disabled . | . . Actions | -11 -10 --------- Run | Yrd Mat Total 947 | 44 903 Wait . | . . Move 846 | 32 814 Hop . | . . Pick Up 27 | 6 21 Fast Attach . | . . Attach 15 | 6 9 Detach 1 | . 1 Swap 6 | . 6 Drop 6 | . 6 Fire 45 | . 45 Melee . | . . Ram 1 | . 1 Kick . | . . Crush . | . . Escape Stasis . | . . Rewire . | . . Trap . | . . Miscellaneous . | . . Route ------- -11/Scrapyard -10/Materials (discovered 6 exits: [*Mat x3] / [*Min x2] / [*Sub]) History --------- Turn | Location | Event 26 | -11/Scrapyard | Discovered new exit (range 15) 62 | -11/Scrapyard | Entered Materials 316 | -10/Materials | Build established: Mutant 487 | -10/Materials | Discovered new exit (range 16) 1089 | -10/Materials | Lost 3 parts (1u2w) 1152 | -10/Materials | Core integrity fell below 50% 1181 | -10/Materials | Lost 3 parts (1p2n) 1738 | -10/Materials | Discovered new exit (range 9) 1753 | -10/Materials | Discovered new exit (range 15) 3014 | -10/Materials | Discovered new exit (range 14) 3433 | -10/Materials | Core integrity fell below 20% 3869 | -10/Materials | Discovered new exit (range 14) 3935 | -10/Materials | Discovered new exit (range 7) 4156 | -10/Materials | Destroyed by G-34 Mercenary with Small Laser Last Messages --------------- T-07 Excavator is excavating. Acquired Arm. Wheel. Dropped Wheel. Acquired Arm. Wheel. Dropped Wheel. Acquired Arm. Wheel. Acquired Cooling System. U-05 Engineer builds a Wall. T-07 Excavator is excavating. U-05 Engineer lays Concrete. Acquired 14 matter. Acquired 27 matter. Acquired Beam Cannon. K-01 Serf cleans the Terminal. O-16 Technician: "IFF HANDSHAKE FAILED. SECURING TERMINAL." Destroyed Datajack. ALERT: Hostiles spotted, dispatching reinforcements to Terminal M004. Acquired 29 matter. Connecting with Terminal... Acquired 3 matter. Map ----- +----------------------------------------------------+ | ?????################# #### #??????# | | ?????# + #??????# | | ?????# ############## ####### #??????# | | ?????# #?##"""##????# # ######??????# | | ?????# ###"!!!"##???# #?# ???????# | | ?????# ##"" ""#???# ### #?# < ???????# | | ?????# ## #??## #?# #?# ???????# | | ?????# ## < #??# #?######?# ###+######## | | ?????# ## #??# ########## ^ ^ | | ?????# ## #??# ## # ^ | | ?????# ### ##??# ## # ^ | | ######+#### ##??## ## ### ! | | # # ##### # #?# ![! | | # + # """ #?# """ *"" | | # # + """"" #?# """ =!Y" | | # # # """"" ### """ ="" | | # ######### # """"" + | | # ############### """ ### | | #########+# #???# [#?# ######## | | # ### # "" #???# #?# ######## | | # """ # # """ "" #???##/###+##?# # ! # | | # """ # + """ T" #????# #?# #??# # # | | # """ + # "" % "" #???## ### #??# + "" # | | # """ # # "" #####g ## #### #??????# | | # """ # # +% ? ? #??????# | | # # # ! # @# ########? #??????## | | ##+#### ########### #####??#####? #???????? | | ?# #??# ^+? #### #??????#! #???????? | | ##+#### # + #??????#!! #???????? | | # # # """ #### #??????#!! ######### | | # # # """ !#??# #??????#!! # | | # # # """ #??# #??????#// # | | # "" + # [#??# #??????#// # | | # T" # ########??# #??????##### # | | # "" # #########?# #??????????# # ! | | # # # """ #?# #??????????# # | | ####### # "T" #?# #??????????# ^+ | | ??????# + #?# #??????????# # | | ??????# # #?# #??????????# # | | ??????# # #?# #?????????## ######### | | ??????# #########?# ########### #??????? | | ??????# #?????????# #??????? | | ??????# #?????????# #??????? | | ??????# #?????????# #??????? | | ??????# ########### #######+### #??????? | | ??????# #?# ##### #??????? | | ??????# #?# """ #???# #??????? | | ??????# #?# """"" #???# #??????? | | ??########## #?# """"" #???# #??????? | | ??# # #?# """"" #???# #??????? | +----------------------------------------------------+ Best States ------------- Heat Dissipation 25 Energy Generation 14 Energy Capacity 250 Matter Stores 300 Matter Capacity 300 Sight Range 16 Robot Scan Range 14 Terrain Scan Density 10 Evasion (%) 40 Recoil Reduction 2 Item Schematics ----------------- None Robot Schematics ------------------ None Fabricated ------------ Nothing Alien Tech Used ----------------- None Achievements -------------- None Challenges ------------ None Game ------ Seed HugeSingularityTreads Manual? 0 Play Time 00:20:30 Cumulative 19.9 hours Start 2024.03.31 @ 04:00:59 End 2024.03.31 @ 04:19:48 Sessions 1 Manual Loads 0 Difficulty Rogue Special Mode None Game No. 44 Rogue 41 Adventurer 0 Explorer 3 Win Type - Total 0 Types 0/0/0/0/0/0/0/0/0 Lore% 19 Gallery% 27 Achievement% 23 Wizard Run 0 Options --------- Layout 0 ASCII 0 Keyboard 0 Movement Mouse Keybinds 0 Fullscreen 2 Font 18/SmallcapsGlow Map View 76x50 Zoom Use 0% Tactical HUD 0 Map Filters NONE Filters NONE Steam 1 RUN: e4a3f760-0da2-4526-a878-e6b5d0c846ce